bitfinex/quotes_ETHUSD_20220215
["timestamp","ask_amount","ask_price","bid_price","bid_amount"]
[1644906399967,0.0073929,3023.7,3023.0,1.21024171]
[1644906400565,0.0073929,3023.7,3023.2,0.82685]
[1644906400765,0.8342429,3023.7,3023.2,0.82685]
[1644906400967,0.82685,3023.7,3023.4,0.82685]
[1644906401172,0.0073929,3023.6,3023.4,0.82685]
[1644906402190,0.475,3024.1,3023.4,0.82685]
[1644906402388,0.0073929,3023.7,3023.4,0.82685]
[1644906403389,0.8267737,3024.0,3023.4,0.82685]
[1644906403588,0.0073929,3023.7,3023.4,1.65361]
[1644906403791,0.0073929,3023.7,3023.5,0.82679]
[1644906404588,0.8267981,3023.9,3023.5,0.82679]
[1644906404791,0.0073929,3023.8,3023.5,0.82679]
[1644906405630,0.8341829,3023.8,3023.5,0.82679]
[1644906405833,0.82679,3023.8,3023.5,0.82679]
[1644906406030,0.8341829,3023.8,3023.5,0.82679]
[1644906406932,0.82679,3023.8,3023.5,0.82679]
[1644906407146,0.8341829,3023.8,3023.5,0.82679]
[1644906408134,0.82679,3023.8,3023.5,0.82679]
[1644906408335,0.8341829,3023.8,3023.5,0.82679]
[1644906409038,0.8381066,3023.8,3023.5,0.82679]
[1644906409290,0.8307137,3023.8,3023.5,0.82679]
[1644906409787,0.8381066,3023.8,3023.5,0.82679]
[1644906410688,0.8307137,3023.8,3023.5,0.82679]
[1644906410890,0.8381066,3023.8,3023.5,0.82679]
[1644906411294,0.8381066,3023.8,3023.5,1.69761655]
[1644906411491,0.0113166,3023.8,3023.5,2.52437655]
[1644906411694,0.0039237,3023.8,3023.6,0.82676]
[1644906411892,0.0039237,3024.0,3023.6,0.82676]
[1644906412093,0.0073929,3023.8,3023.6,0.82676]
[1644906412292,0.0113166,3023.8,3023.6,0.82676]
[1644906412493,0.0073929,3023.8,3023.6,0.82676]
[1644906412694,0.8341729,3023.8,3023.6,0.82676]
[1644906412975,0.8307037,3023.8,3023.6,0.82676]
[1644906413366,0.82935824,3023.8,3023.6,0.82676]
[1644906416996,0.0039237,3023.8,3023.6,0.82676]
[1644906419500,0.8306737,3023.8,3023.6,0.82676]
[1644906419697,0.0039237,3023.8,3023.6,0.82676]
[1644906420441,0.0039237,3023.8,3023.7,0.8267]
[1644906420641,0.00738022,3023.9,3023.7,0.8267]
[1644906421544,0.0039237,3024.0,3023.7,0.8267]
[1644906421741,0.01130392,3024.0,3023.7,1.65338]
[1644906421942,0.01130392,3024.0,3023.8,0.82664]
[1644906421943,0.00738022,3024.0,3023.8,0.82664]
[1644906422541,0.0039237,3024.3,3023.8,0.82664]
[1644906422744,1.40313045,3024.2,3024.1,0.8939817]
[1644906422943,0.0039237,3024.3,3024.1,0.8939817]
[1644906423143,0.0039237,3024.5,3024.1,1.7205817]
[1644906423344,0.0039237,3024.6,3024.1,1.7205817]
[1644906423542,1.40299574,3024.5,3024.1,1.7205817]
[1644906423742,0.0039237,3024.4,3024.1,1.7205817]
[1644906423943,0.826516,3024.8,3024.1,1.7205817]
[1644906423944,0.0039237,3024.7,3024.1,1.7205817]
[1644906424190,0.00738022,3024.5,3024.1,1.7205817]
[1644906424393,0.01130392,3024.5,3024.1,1.7205817]
[1644906424592,0.00738022,3024.5,3024.1,2.5470917]
[1644906424996,0.8304446,3024.7,3024.2,0.82651]
[1644906425196,0.83389022,3024.5,3024.2,0.82651]
[1644906425594,0.0039237,3024.4,3024.2,0.82651]
[1644906426695,0.0039237,3024.4,3024.1,1.7205917]
[1644906426995,0.0039237,3024.4,3024.2,3.24917713]
[1644906427197,0.00738022,3024.5,3024.1,0.8939817]
[1644906427398,0.0039237,3024.8,3024.1,2.8470417]
[1644906427696,0.00738022,3024.5,3024.1,2.8470417]
[1644906428139,0.00738022,3024.5,3024.2,0.82658]
[1644906428340,0.01130392,3024.5,3024.2,0.82658]
[1644906428543,0.8304637,3024.8,3024.2,0.82658]
[1644906428740,1.40296487,3024.7,3024.2,0.82658]
[1644906428941,0.00738022,3024.5,3024.2,0.82658]
[1644906429542,0.01130392,3024.5,3024.2,0.82658]
[1644906429742,0.83782392,3024.5,3024.2,0.82658]
[1644906430942,0.8304437,3024.5,3024.2,0.82658]
[1644906431142,0.83782392,3024.5,3024.2,0.82658]
[1644906432187,0.8304437,3024.5,3024.2,0.82658]
[1644906433488,0.0039237,3024.5,3024.2,0.82658]
[1644906433689,0.8304337,3024.6,3024.2,0.82658]
[1644906433889,0.8304337,3024.6,3024.2,5.2325326]
[1644906434090,0.0039237,3024.6,3024.3,0.82646]
[1644906434391,0.0039237,3024.9,3024.3,0.82646]
[1644906434690,1.40295576,3024.8,3024.3,0.82646]
[1644906434890,0.0039237,3024.7,3024.3,0.82646]
[1644906435093,1.40295576,3024.6,3024.3,0.82646]
[1644906435540,0.0039237,3024.5,3024.3,0.82646]
[1644906435737,0.82653,3024.6,3024.3,0.82646]
[1644906436038,0.0039237,3024.5,3024.3,0.82646]
[1644906436239,0.00736753,3024.6,3024.3,0.82646]
[1644906436940,0.0039237,3024.8,3024.3,0.82646]
[1644906437139,1.40296638,3024.7,3024.3,0.82646]
[1644906437340,0.01129123,3024.6,3024.3,0.82646]
[1644906437745,0.00736753,3024.6,3024.3,0.82646]
[1644906437940,0.01129123,3024.6,3024.3,1.3223411]
[1644906438142,0.0039237,3025.0,3024.4,0.3]
[1644906438340,1.40293614,3024.9,3024.4,0.3]
[1644906438639,1.40293614,3024.9,3024.3,1.12646]
[1644906438640,0.00736753,3024.6,3024.3,1.12646]
[1644906439039,0.01129123,3024.6,3024.4,1.6529]
[1644906439317,0.0039237,3025.1,3024.4,1.9529]
[1644906439516,0.0039237,3025.1,3024.7,1.18459701]
[1644906439517,1.40294039,3025.0,3024.7,1.18459701]
[1644906439716,0.0039237,3024.9,3024.8,0.82644]
[1644906439917,1.40686409,3024.9,3024.8,0.82644]
[1644906440117,1.40294039,3024.9,3024.8,1.12644]
[1644906440320,1.40294039,3024.9,3024.8,0.3]
[1644906440718,1.40294039,3025.0,3024.7,3.13733701]
[1644906440920,0.0039237,3024.9,3024.7,3.13733701]
[1644906441119,1.40294039,3024.8,3024.7,3.13733701]
[1644906441522,0.00736522,3025.0,3024.7,3.13733701]
[1644906441523,1.40294039,3024.9,3024.7,1.48459701]
[1644906442019,1.40294039,3024.8,3024.7,1.48459701]
[1644906443845,0.1735879,3025.3,3024.9,5.45]
[1644906444045,0.1735879,3025.3,3024.9,7.0308612]
[1644906444245,0.02945487,3025.5,3025.0,5.45]
[1644906444445,2.9169474,3026.0,3025.0,6.27616]
[1644906444644,1.40253287,3025.9,3025.0,9.77616]
[1644906444844,1.40253287,3025.8,3025.0,6.27616]
[1644906445045,6.5858,3026.2,3025.0,6.27616]
[1644906445046,1.40253287,3025.7,3025.0,6.27616]
[1644906445246,0.82621,3026.0,3025.3,1.65239]
[1644906445447,1.40250495,3025.9,3025.3,1.65239]
[1644906445645,1.40250495,3025.9,3025.8,0.86174649]
[1644906445844,0.63425478,3025.6,3025.4,1.17016513]
[1644906447005,0.63425478,3025.6,3025.5,0.82625]
[1644906447409,2.0367691,3025.6,3025.5,0.82625]
[1644906447806,2.0367691,3025.6,3025.5,1.12625]
[1644906448305,0.63425478,3025.6,3025.5,1.12625]
[1644906450944,0.63425478,3025.6,3025.5,4.3680921]
[1644906451146,0.63425478,3025.6,3025.5,1.12625]
[1644906451946,0.63425478,3025.6,3025.5,4.35545393]
[1644906452147,0.63425478,3025.6,3025.5,1.12625]
[1644906452349,0.63425478,3025.6,3025.5,4.29319227]
[1644906454403,0.63425478,3025.6,3025.5,4.40591834]
[1644906458043,0.63425478,3025.6,3025.5,1.12625]
[1644906465100,0.63425478,3025.6,3025.5,4.38248644]
[1644906466572,0.00727082,3025.7,3025.5,2.4479274]
[1644906466867,0.00727082,3025.7,3025.6,1.82605]
[1644906467167,0.00390408,3026.3,3026.2,0.92362737]
[1644906467367,0.00390408,3026.3,3025.5,0.3]
[1644906467368,0.57214682,3026.0,3025.5,0.3]
[1644906467568,0.00390408,3025.9,3025.8,0.82606]
[1644906467767,0.00390408,3025.9,3025.8,1.12606]
[1644906468367,0.00390408,3025.9,3025.8,0.3]
[1644906468567,0.00390408,3025.9,3025.8,1.95215]
[1644906469702,0.02907892,3026.5,3026.0,5.45]
[1644906469897,0.02907892,3026.5,3026.2,0.82583]
[1644906470296,0.02907892,3026.5,3026.2,1.12583]
[1644906470698,2.344,3027.1,3027.0,1.16826655]
[1644906470899,1.6519262,3027.2,3027.0,1.16826655]
[1644906471097,1.6519262,3027.2,3027.0,1.46826655]
[1644906471298,1.65189,3027.3,3027.0,1.46826655]
[1644906471496,1.40185923,3027.2,3027.0,1.46826655]
[1644906471699,1.40185923,3027.2,3026.3,2.2028]
[1644906471896,1.40185923,3027.2,3026.4,0.3]
[1644906472095,1.40185923,3027.2,3026.3,2.5028]
[1644906472497,0.00218124,3027.3,3026.3,2.5028]
[1644906472704,0.00218124,3027.3,3026.7,1.18732096]
[1644906472948,1.40188513,3027.4,3026.7,1.48732096]
[1644906473350,0.00725265,3027.2,3026.7,1.48732096]
[1644906473748,0.83323265,3027.2,3026.7,1.48732096]
[1644906474152,0.82598,3027.2,3026.7,1.48732096]
[1644906474453,0.00725265,3027.1,3026.7,1.48732096]
[1644906475351,0.82593,3027.3,3026.7,1.48732096]
[1644906475552,0.4813753,3027.5,3026.7,1.48732096]
[1644906475751,1.40189074,3027.4,3026.7,1.48732096]
[1644906475952,0.01708355,3027.1,3026.7,1.48732096]
[1644906476895,0.02432355,3027.1,3026.7,1.48732096]
[1644906477796,0.01708355,3027.1,3026.7,1.48732096]
[1644906477994,0.02432355,3027.1,3026.7,1.48732096]
[1644906478596,0.02432355,3027.1,3026.8,0.82586]
[1644906478997,0.01708355,3027.1,3026.8,0.82586]
[1644906479196,0.02432355,3027.1,3026.8,0.82586]
[1644906480199,0.01708355,3027.1,3026.8,0.82586]
[1644906480444,0.02432355,3027.1,3026.8,0.82586]
[1644906481446,0.01708355,3027.1,3026.7,1.48732096]
[1644906481649,0.02432355,3027.1,3026.7,1.48732096]
[1644906482549,0.01708355,3027.1,3026.7,1.48732096]
[1644906482749,0.02432355,3027.1,3026.7,1.48732096]
[1644906483846,0.01708355,3027.1,3026.7,1.48732096]
[1644906484048,0.02432355,3027.1,3026.7,1.48732096]
[1644906485101,0.01708355,3027.1,3026.7,1.48732096]
[1644906485299,0.02432355,3027.1,3026.7,1.48732096]
[1644906485499,0.02432355,3027.1,3026.7,1.18732096]
[1644906485701,0.02820811,3027.1,3026.7,1.18732096]
[1644906485901,0.03652232,3027.1,3026.7,1.48732096]
[1644906486303,0.02928232,3027.1,3026.7,1.48732096]
[1644906486503,0.03263776,3027.1,3026.7,1.48732096]
[1644906487505,0.02539776,3027.1,3026.7,1.48732096]
[1644906487809,0.03263776,3027.1,3026.7,1.48732096]
[1644906488051,0.03263776,3027.1,3026.7,2.31319096]
[1644906488653,0.02539776,3027.1,3026.7,2.31319096]
[1644906488852,0.03263776,3027.1,3026.7,2.31319096]
[1644906489753,0.02539776,3027.1,3026.7,2.31319096]
[1644906490054,0.03263776,3027.1,3026.7,2.31319096]
[1644906490253,0.03168471,3027.1,3026.7,2.31319096]
[1644906490956,0.03168471,3027.1,3026.7,1.48732096]
[1644906491155,0.02444471,3027.1,3026.7,1.48732096]
[1644906491354,0.03168471,3027.1,3026.7,1.48732096]
[1644906492297,0.02444471,3027.1,3026.7,1.48732096]
[1644906492597,0.82596,3027.0,3026.5,0.82594]
[1644906492900,1.40602207,3026.9,3026.2,1.65189]
[1644906493201,1.40219302,3026.8,3026.3,0.3]
[1644906493398,0.00388456,3026.8,3026.0,3.3237]
[1644906493799,0.00724,3026.7,3026.0,3.3237]
[1644906493998,0.82612,3026.6,3026.1,1.17868214]
[1644906494201,0.82999456,3026.5,3026.1,1.17868214]
[1644906494900,0.82999456,3026.5,3025.3,0.35515579]
[1644906494901,0.83723456,3026.5,3025.3,0.35515579]
[1644906495100,0.83723456,3026.5,3025.1,1.65223]
[1644906495101,2.70362581,3026.4,3025.1,3.33405579]
[1644906495302,2.70362581,3026.4,3025.2,0.5]
[1644906495303,1.07577,3026.1,3025.2,0.5]
[1644906495575,0.47888456,3026.0,3025.2,0.5]
[1644906495872,0.47888456,3026.0,3025.3,0.86502537]
[1644906496061,0.47888456,3026.0,3025.3,1.69129537]
[1644906497161,0.47888456,3026.0,3025.5,0.82618]
[1644906497561,0.47888456,3026.0,3025.5,1.12618]
[1644906498062,0.475,3026.0,3025.5,1.12618]
[1644906498463,0.475,3026.0,3025.6,0.82614]
[1644906499600,0.39626034,3026.0,3025.6,0.82614]
[1644906501003,0.00388456,3026.1,3025.9,0.91514963]
[1644906501204,0.83727658,3026.2,3025.9,0.91514963]
[1644906501802,0.83002456,3026.2,3025.9,0.91514963]
[1644906502003,0.83727706,3026.2,3025.9,0.91514963]
[1644906502955,0.83002456,3026.2,3025.9,0.91514963]
[1644906503353,0.83727706,3026.2,3025.9,0.91514963]
[1644906503951,0.8333925,3026.2,3025.9,0.91514963]
[1644906504352,1.30114,3026.2,3025.9,0.91514963]
[1644906504553,1.3083925,3026.2,3025.9,0.91514963]
[1644906505555,1.30114,3026.2,3025.9,0.91514963]
[1644906505754,1.3083925,3026.2,3025.9,0.91514963]
[1644906506711,1.30114,3026.2,3025.9,0.91514963]
[1644906506899,1.3083925,3026.2,3025.7,0.82614]
[1644906507101,1.3083925,3026.2,3025.7,1.12614]
[1644906507600,0.82618,3026.1,3025.7,0.3]
[1644906507803,0.82618,3026.1,3025.5,0.3]
[1644906508000,0.82618,3026.1,3025.8,1.11492793]
[1644906508400,0.82618,3026.1,3025.8,1.41492793]
[1644906508801,1.65238,3026.1,3025.8,1.41492793]
[1644906510557,0.82618,3026.1,3025.8,1.41492793]
[1644906515002,0.82618,3026.1,3025.8,2.24107793]
[1644906515202,0.00725238,3026.2,3025.9,3.22874922]
[1644906515700,0.00725238,3026.2,3025.9,3.52874922]
[1644906516101,0.00725238,3026.2,3026.0,1.65191]
[1644906516304,0.00388456,3026.6,3026.1,3.31639886]
[1644906516499,0.0072525,3026.2,3026.1,3.31639886]
[1644906516701,0.0072525,3026.2,3026.1,3.61639886]
[1644906517301,0.0072525,3026.2,3026.1,5.26823886]
[1644906517502,0.82985456,3026.8,3026.7,1.01309495]
[1644906517701,1.43503807,3026.8,3026.3,0.82598]
[1644906517955,1.40214816,3026.7,3026.3,1.12598]
[1644906518156,0.00388456,3026.6,3026.3,1.12598]
[1644906518557,0.82599,3026.6,3026.3,1.12598]
[1644906518757,0.00388456,3026.5,3026.3,2.30479437]
[1644906518966,0.00388456,3026.5,3026.3,1.47881437]
[1644906519156,0.0072525,3026.6,3026.3,1.47881437]
[1644906519758,0.8332425,3026.6,3026.3,1.47881437]
[1644906520059,1.40600061,3026.5,3026.3,1.47881437]
[1644906520258,0.00388456,3026.5,3026.3,1.47881437]
[1644906521060,0.82987456,3026.6,3026.3,1.47881437]
[1644906521259,0.82987456,3026.6,3026.3,2.30482437]
[1644906521260,1.40212158,3026.5,3026.3,2.30482437]
[1644906521462,1.40212158,3026.5,3026.3,1.47881437]
[1644906521912,0.01113706,3026.6,3026.3,1.47881437]
[1644906521913,0.0072525,3026.6,3026.3,1.47881437]
[1644906522112,1.40212238,3026.5,3026.3,1.47881437]
[1644906522511,0.0072525,3026.6,3026.3,4.74611608]
[1644906523113,0.0072525,3026.6,3026.3,6.4894499]
[1644906523312,0.0072525,3026.6,3026.4,0.82592]
[1644906523512,0.00388456,3026.8,3026.5,3.25334306]
[1644906523713,1.40206832,3026.7,3026.4,0.82592]
[1644906523913,1.40206832,3026.7,3026.3,1.47881437]
[1644906523914,0.0072525,3026.6,3026.3,1.47881437]
[1644906524116,1.40212783,3026.5,3026.3,1.47881437]
[1644906525318,1.40212783,3026.5,3026.3,4.65471075]
[1644906525564,0.8332525,3026.6,3026.3,5.48073075]
[1644906525760,0.826,3026.6,3026.3,5.48073075]
[1644906526261,0.8332525,3026.6,3026.3,5.48073075]
[1644906526664,0.0072525,3026.6,3026.4,0.826]
[1644906527060,0.00388456,3026.8,3026.4,0.826]
[1644906527261,1.40211888,3026.7,3026.4,0.826]
[1644906527460,1.40937138,3026.7,3026.4,0.826]
[1644906527661,1.40211888,3026.6,3026.4,0.826]
[1644906528462,1.40211888,3026.5,3026.4,0.826]
[1644906528663,1.40211888,3026.6,3026.4,0.826]
[1644906529614,1.40211888,3026.5,3026.4,0.826]
[1644906529807,1.40937138,3026.7,3026.4,0.826]
[1644906530007,1.40211888,3026.6,3026.4,0.826]
[1644906530708,1.40211888,3026.6,3026.4,4.08855458]
[1644906530907,0.0072525,3026.7,3026.4,0.826]
[1644906531909,0.00388456,3026.8,3026.4,0.826]
[1644906532109,0.0072525,3026.7,3026.4,0.826]
[1644906533054,0.00388456,3026.8,3026.4,0.826]
[1644906533257,0.0072525,3026.7,3026.4,0.826]
[1644906534260,0.82982456,3026.8,3026.4,0.826]
[1644906534457,0.0072525,3026.7,3026.4,0.826]
[1644906535458,0.82982456,3026.8,3026.4,0.826]
[1644906535663,0.0072525,3026.7,3026.4,0.826]
[1644906536360,0.00624285,3026.7,3026.4,0.826]
[1644906536821,1.65578366,3026.8,3026.4,0.826]
[1644906537719,1.6518991,3026.8,3026.4,0.826]
[1644906538916,0.82594,3026.9,3025.9,1.59661393]
[1644906539217,0.00388456,3026.9,3025.9,1.3]
[1644906539419,0.00388456,3027.1,3025.9,1.3]
[1644906540016,0.00388456,3027.1,3026.5,0.97113436]
[1644906540219,0.8259,3027.0,3026.5,0.97113436]
[1644906540456,0.00388456,3026.9,3026.5,0.97113436]
[1644906540657,0.00724997,3026.7,3026.5,0.97113436]
[1644906541257,0.00724997,3026.7,3026.6,0.82589]
[1644906541460,0.00388456,3027.1,3026.6,0.82589]
[1644906541656,0.0063753,3027.5,3026.7,3.02070429]
[1644906541657,0.00724997,3026.8,3026.7,3.02070429]
[1644906541857,0.00724997,3026.8,3026.7,0.3302964]
[1644906542059,0.00724997,3026.8,3026.6,1.12589]
[1644906542258,0.00724997,3026.8,3026.7,0.82577]
[1644906542458,0.00724997,3026.8,3026.7,1.65152]
[1644906542660,0.01025986,3027.5,3026.7,1.65152]
[1644906542859,1.40175224,3027.4,3026.8,1.65159]
[1644906543058,0.00724997,3026.9,3026.8,1.95159]
[1644906543860,0.82970456,3027.3,3026.8,1.95159]
[1644906544060,0.00724997,3027.0,3026.8,1.95159]
[1644906545106,0.01025986,3027.5,3026.9,0.82578]
[1644906545307,0.00724997,3027.1,3027.0,0.86865487]
[1644906546308,0.01025986,3027.5,3027.0,1.69439487]
[1644906546507,0.00724997,3027.2,3027.0,1.69439487]
[1644906547509,0.01025986,3027.5,3027.0,1.69439487]
[1644906547510,3.83283577,3027.5,3027.0,1.69439487]
[1644906547709,0.00724997,3027.3,3027.0,1.69439487]
[1644906548757,0.82966496,3027.4,3027.0,1.69439487]
[1644906548957,0.00724997,3027.3,3027.0,1.69439487]
[1644906549561,4.4,3027.0,3026.3,0.10515938]
[1644906549864,0.82611,3026.8,3025.8,7.3764]
[1644906550060,0.826184,3026.6,3025.8,4.70251]
[1644906550259,0.475,3026.6,3025.9,3.5]
[1644906550465,0.475,3026.6,3025.8,1.1706]
[1644906550660,0.83318997,3026.8,3025.9,0.88232898]
[1644906550861,0.83318997,3026.8,3025.9,5.20825898]
[1644906551161,0.82594,3026.8,3026.1,0.82595]
[1644906551361,0.00724997,3026.5,3026.1,0.82595]
[1644906551561,0.00724997,3026.5,3026.1,1.12595]
[1644906552212,0.00724997,3026.5,3026.2,0.82592]
[1644906552413,1.6518837,3026.6,3026.2,0.82592]
[1644906552606,0.00724986,3026.5,3026.2,0.82592]
[1644906553206,0.8259468,3026.6,3026.2,0.82592]
[1644906553407,0.82597,3026.5,3026.2,0.82592]
[1644906554808,1.6519651,3026.5,3026.2,0.82592]
[1644906555011,1.6519651,3026.5,3026.4,1.00325394]
[1644906555455,0.826,3026.6,3026.4,1.30325394]
[1644906555858,0.8259947,3026.5,3026.4,1.30325394]
[1644906556064,0.8259947,3026.5,3025.8,1.1706]
[1644906556356,0.82613,3026.4,3025.8,1.48083983]
[1644906556556,0.82613,3026.4,3025.9,0.82608]
[1644906556958,0.8260791,3026.3,3025.8,1.18083983]
[1644906557157,0.8260791,3026.3,3025.8,1.1706]
[1644906557356,0.8260791,3026.3,3025.9,0.9296386]
[1644906557560,0.82609,3026.2,3025.9,1.7557186]
[1644906558160,0.8260693,3026.2,3025.9,0.9296386]
[1644906558362,1.3010693,3026.2,3025.9,0.9296386]
[1644906558559,0.82612,3026.1,3025.8,0.01023951]
[1644906559206,1.6525415,3026.0,3025.8,0.01023951]
[1644906559607,0.82629,3026.0,3025.7,1.06253429]
[1644906559810,2.478793,3026.1,3025.7,1.07277385]
[1644906560210,3.478793,3026.1,3025.7,1.07277385]
[1644906560411,0.826264,3025.9,3025.7,1.07277385]
[1644906560807,0.826264,3025.9,3025.7,1.06253429]
[1644906561811,0.8262,3026.0,3025.7,1.06253429]
[1644906562958,0.8261705,3026.1,3025.7,1.06253429]
[1644906563357,0.8261705,3026.1,3025.7,1.07277398]
[1644906564258,0.8261705,3026.1,3025.7,1.06253429]
[1644906564657,1.6523305,3026.1,3025.7,1.07277385]
[1644906565764,0.8262691,3026.0,3025.7,1.07277385]
[1644906565960,0.82627,3026.0,3025.7,0.01023956]
[1644906566816,0.82627,3026.0,3025.2,1.1762]
[1644906567016,0.82627,3026.0,3025.2,1.13643969]
[1644906567215,0.82627,3026.0,3025.6,0.94133386]
[1644906568216,0.82627,3026.0,3025.5,0.82618]
[1644906569116,0.82613,3026.1,3025.5,0.82618]
[1644906569316,1.82613,3026.1,3025.5,0.82618]
[1644906569516,0.82613,3026.1,3025.6,1.04374369]
[1644906570459,1.6524055,3026.0,3025.6,1.04374369]
[1644906570661,0.82623,3026.0,3025.6,1.04374369]
[1644906571064,0.82623,3026.0,3025.5,0.00807032]
[1644906571464,1.65252,3026.0,3025.2,1.13643969]
[1644906571861,0.8262519,3025.9,3025.5,0.01024013]
[1644906572061,0.82629,3025.8,3025.5,1.10368094]
[1644906572262,0.82629,3025.8,3025.5,0.01024013]
[1644906572864,1.6525676,3025.8,3025.2,1.13643969]
[1644906573064,0.82629,3025.7,3025.5,0.01024023]
[1644906573866,0.82629,3025.7,3025.3,1.12569345]
[1644906574313,0.82629,3025.7,3025.4,0.01024036]
[1644906574916,1.6525888,3025.7,3025.4,0.01024036]
[1644906575119,1.6525888,3025.7,3025.3,1.12569345]
[1644906575416,0.82631,3025.6,3025.4,0.01024049]
[1644906575820,0.8263422,3025.5,3025.4,0.01024049]
[1644906576316,0.8263422,3025.5,3025.1,0.10515938]
[1644906576517,0.82642,3025.4,3025.1,0.10515938]
[1644906576719,0.82642,3025.4,3025.3,0.01024076]
[1644906577519,1.6528238,3025.4,3025.3,0.01024076]
[1644906577720,0.8264038,3025.4,3025.1,0.10515938]
[1644906577965,0.82639,3025.3,3025.2,0.01024103]
[1644906578161,0.7789,3025.3,3025.2,0.01024103]
[1644906578964,0.7789,3025.3,3025.0,30.0]
[1644906579262,3.2583939,3025.3,3025.1,0.01024129]
[1644906579861,4.0848739,3025.3,3025.1,0.01024129]
[1644906580061,4.0848739,3025.3,3025.0,30.0]
[1644906580261,0.8264703,3025.2,3025.0,30.01024143]
[1644906581161,0.8264703,3025.2,3025.0,30.0]
[1644906582717,1.77480808,3025.2,3025.0,30.0]
[1644906584420,3.42778808,3025.2,3025.0,30.0]
[1644906584620,2.60128458,3025.2,3025.0,30.0]
[1644906585018,3.48828738,3025.2,3025.0,30.0]
[1644906585459,5.14126738,3025.2,3025.0,30.0]
[1644906588262,4.25426458,3025.2,3025.0,30.0]
[1644906589609,1.0,3025.1,3025.0,30.0]
[1644906589813,1.89325635,3025.1,3025.0,30.0]
[1644906591710,1.89232978,3025.1,3025.0,30.0]
[1644906595262,0.99907343,3025.1,3025.0,30.0]
[1644906595862,1.0,3025.1,3025.0,30.0]
[1644906596364,2.77481428,3025.2,3025.0,30.0]
[1644906598315,0.94833778,3025.2,3025.0,30.0]
[1644906599814,1.77467748,3025.2,3025.0,30.0]
[1644906600016,1.77467748,3025.2,3025.0,30.82636]
[1644906600560,0.94833778,3025.2,3025.0,30.82636]
[1644906600761,1.2218,3025.8,3025.1,3.21344887]
[1644906600959,0.13596377,3026.0,3025.2,0.82624]
[1644906601158,0.13596377,3026.0,3025.3,3.41449054]
[1644906601663,4.2964,3026.2,3025.6,0.96209172]
[1644906601860,0.82618,3026.0,3025.6,0.96209172]
[1644906602061,2.22862338,3025.9,3025.5,0.01024023]
[1644906602561,1.6524418,3025.9,3025.5,0.01024023]
[1644906602765,2.22891518,3025.8,3025.5,0.01024023]
[1644906602962,2.30395292,3025.7,3025.1,4.6757]
[1644906603160,1.40263518,3025.6,3025.1,1.1757]
[1644906603361,0.82639,3025.6,3025.1,1.1757]
[1644906603560,0.82639,3025.6,3025.0,31.10153894]
[1644906603760,0.82639,3025.6,3025.0,30.0]
[1644906603960,0.82639,3025.6,3025.0,30.00529466]
[1644906604210,0.826386,3025.5,3025.1,0.01024728]
[1644906604408,0.8264,3025.4,3025.1,0.01024728]
[1644906605007,0.826386,3025.5,3025.1,0.01024728]
[1644906605207,0.826386,3025.5,3025.0,30.00529466]
[1644906605406,0.82635,3025.4,3025.1,0.11544787]
[1644906605607,0.8263975,3025.3,3025.1,0.11544787]
[1644906605807,0.8263975,3025.3,3025.1,0.01024741]
[1644906606008,0.8263975,3025.3,3025.1,0.11544767]
[1644906606409,0.8263975,3025.3,3025.1,0.10520026]
[1644906607614,1.6527575,3025.3,3025.1,0.10520026]
[1644906608461,0.8263975,3025.3,3025.1,0.10520026]
[1644906609158,0.8341791,3025.2,3025.1,0.10520026]
[1644906610260,0.8341791,3025.2,3025.1,0.93156026]
[1644906611060,0.8341791,3025.2,3025.1,0.10520026]
[1644906611263,0.8341791,3025.2,3025.1,0.93156026]
[1644906611460,0.8341791,3025.2,3025.1,0.10520026]
[1644906611461,1.6605587,3025.2,3025.1,0.10520026]
[1644906611913,0.8341791,3025.2,3025.1,0.10520026]
[1644906612311,0.8341791,3025.2,3025.1,0.93155026]
[1644906614112,0.8341791,3025.2,3025.1,0.10520026]
[1644906614313,0.8341791,3025.2,3025.0,30.01554234]
[1644906614615,0.4170718,3025.2,3025.0,30.01554234]
[1644906614812,0.4170718,3025.2,3025.0,30.00529466]
[1644906614813,0.8263896,3025.2,3025.0,30.00529466]
[1644906615111,2.1358491,3025.1,3025.0,30.00529466]
[1644906615311,3.1358491,3025.1,3025.0,30.00529466]
[1644906615559,2.3091791,3025.1,3025.0,30.00529466]
[1644906616761,5.59355112,3025.1,3025.0,30.00529466]
[1644906618761,5.59355112,3025.1,3025.0,30.11050316]
[1644906618762,2.3091791,3025.1,3025.0,30.11050316]
[1644906619610,5.21279562,3025.1,3025.0,30.11050316]
[1644906620013,2.3091791,3025.1,3025.0,30.11050316]
[1644906623360,3.71193194,3025.1,3025.0,30.11050316]
[1644906626065,3.23693194,3025.1,3025.0,30.11050316]
[1644906632262,2.23693194,3025.1,3025.0,30.11050316]
[1644906632463,0.8341791,3025.1,3025.0,30.11050316]
[1644906633262,0.8341791,3025.1,3025.0,31.87367859]
[1644906634711,0.8341791,3025.1,3025.0,31.04734859]
[1644906639062,0.8341791,3025.1,3025.0,30.11050316]
[1644906654588,0.8341791,3025.1,3025.0,30.93686316]
[1644906654789,0.83329189,3025.1,3025.0,30.9315685]
[1644906655190,0.4170718,3025.1,3025.0,30.9315685]
[1644906655591,0.83329189,3025.1,3025.0,30.9315685]
[1644906655793,0.83329189,3025.1,3025.0,30.1052085]
[1644906655991,0.83329189,3025.1,3025.0,30.11050316]
[1644906656393,0.83329189,3025.1,3025.0,30.1052085]
[1644906658219,2.23605107,3025.1,3025.0,30.1052085]
[1644906658418,3.53605107,3025.1,3025.0,30.1052085]
[1644906658618,3.23605107,3025.1,3025.0,30.1052085]
[1644906659418,2.23605107,3025.1,3025.0,30.1052085]
[1644906660971,0.83329189,3025.1,3025.0,30.1052085]
[1644906664625,0.83329189,3025.1,3025.0,30.0]
[1644906664817,0.83329189,3025.1,3025.0,30.10520548]
[1644906664818,2.23603166,3025.1,3025.0,30.10520548]
[1644906667421,3.23603166,3025.1,3025.0,30.10520548]
[1644906668468,4.06256166,3025.1,3025.0,30.10520548]
[1644906668669,7.58775325,3025.1,3025.0,30.10520548]
[1644906668867,8.06275325,3025.1,3025.0,30.10520548]
[1644906669069,4.83756166,3025.1,3025.0,30.10520548]
[1644906669271,4.83756166,3025.1,3025.0,30.0]
[1644906671373,4.53756166,3025.1,3025.0,30.0]
[1644906672618,4.83756166,3025.1,3025.0,30.0]
[1644906673818,4.83756166,3025.1,3025.0,30.10520494]
[1644906674018,4.83756166,3025.1,3025.0,30.0]
[1644906675021,4.53756166,3025.1,3025.0,30.0]
[1644906675865,4.83756166,3025.1,3025.0,30.0]